fUST/lending_fUST_20250227
["ID","MTS","AMOUNT","RATE_DAILY","PERIOD"]
[354699810,1740628246977,-151.0,0.00046575,120]
[354699811,1740628246986,-151.0,0.00046575,120]
[354699812,1740628246995,-151.0,0.00046575,120]
[354699813,1740628247046,-151.0,0.00046575,120]
[354699814,1740628247056,-500.0,0.00046575,120]
[354699815,1740628247066,-151.0,0.00046575,120]
[354699816,1740628247076,-901.17,0.00046575,120]
[354699817,1740628247086,-500.43246765,0.00046575,120]
[354699818,1740628247099,-151.0,0.00046575,120]
[354699819,1740628247108,-4004.22,0.00046575,120]
[354699820,1740628247117,-774.83,0.00046575,120]
[354699821,1740628247126,-151.0,0.00046575,120]
[354699822,1740628247136,-151.0,0.00046575,120]
[354699823,1740628247146,-151.0,0.00046575,120]
[354699824,1740628247155,-151.0,0.00046575,120]
[354699825,1740628247164,-274.10252,0.00046575,120]
[354699826,1740628247174,-1652.01,0.00046575,120]
[354699827,1740628247183,-500.0,0.00046575,120]
[354699828,1740628247193,-500.0,0.00046575,120]
[354699829,1740628247202,-754.66,0.00046575,120]
[354699830,1740628247211,-500.0,0.00046575,120]
[354699831,1740628247220,-500.0,0.00046575,120]
[354699832,1740628247230,-2847.41,0.00046575,120]
[354699833,1740628247239,-502.46820199,0.00046575,120]
[354699834,1740628247249,-502.84904255,0.00046575,120]
[354699835,1740628247258,-4146.58,0.00046575,120]
[354699836,1740628247267,-909.96,0.00046575,120]
[354699837,1740628247277,-203.63948,0.00046575,120]
[354699838,1740628247287,-203.63948,0.00046575,120]
[354699839,1740628247296,-203.63948,0.00046575,120]
[354699840,1740628247305,-500.0,0.00046575,120]
[354699841,1740628247315,-203.63948,0.00046575,120]
[354699842,1740628247324,-500.0,0.00046575,120]
[354699843,1740628247335,-203.63948,0.00046575,120]
[354699844,1740628247344,-203.63948,0.00046575,120]
[354699845,1740628247354,-500.0,0.00046575,120]
[354699846,1740628247363,-953.72,0.00046575,120]
[354699847,1740628247372,-151.0,0.00046575,120]
[354699848,1740628247382,-151.0,0.00046575,120]
[354699849,1740628247391,-151.0,0.00046575,120]
[354699850,1740628247401,-203.63948,0.00046575,120]
[354699851,1740628247410,-152.080639,0.00046575,120]
[354699852,1740628247420,-203.63948,0.00046575,120]
[354699853,1740628247429,-203.63948,0.00046575,120]
[354699854,1740628247438,-203.63948,0.00046575,120]
[354699855,1740628247447,-203.63948,0.00046575,120]
[354699856,1740628247456,-203.63948,0.00046575,120]
[354699857,1740628247466,-500.0,0.00046575,21]
[354699858,1740628247476,-500.0,0.00046575,120]
[354699859,1740628247485,-500.0,0.00046575,120]
[354699860,1740628247495,-500.0,0.00046575,120]
[354699861,1740628247504,-500.0,0.00046575,120]
[354699862,1740628247513,-2180.11,0.00046575,120]
[354699863,1740628247522,-523.44978379,0.00046575,120]
[354699864,1740628247531,-500.0,0.00046575,120]
[354699865,1740628247541,-9224.05,0.00046575,120]
[354699866,1740628247550,-500.0,0.00046575,120]
[354699867,1740628247559,-500.0,0.00046575,120]
[354699868,1740628247569,-940.96,0.00046575,120]
[354699869,1740628247578,-500.0,0.00046575,120]
[354699870,1740628247588,-500.0,0.00046575,120]
[354699871,1740628247597,-500.0,0.00046575,120]
[354699872,1740628247608,-151.0,0.00046575,120]
[354699873,1740628247617,-151.0,0.00046575,120]
[354699874,1740628247626,-151.0,0.00046575,120]
[354699875,1740628247636,-151.0,0.00046575,120]
[354699876,1740628247645,-151.0,0.00046575,120]
[354699877,1740628247655,-932.99,0.00046575,120]
[354699878,1740628247663,-151.0,0.00046575,120]
[354699879,1740628247673,-3421.28,0.00046575,120]
[354699880,1740628247682,-502.05300707,0.00046575,120]
[354699881,1740628247691,-443.29693061,0.00046575,28]
[354699882,1740628247701,-1586.05,0.00046575,120]
[354699883,1740628247711,-500.0,0.00046575,120]
[354699884,1740628247720,-500.0,0.00046575,120]
[354699885,1740628247731,-500.0,0.00046575,120]
[354699886,1740628247741,-500.0,0.00046575,120]
[354699887,1740628247750,-500.0,0.00046575,120]
[354699888,1740628247759,-500.0,0.00046575,120]
[354699889,1740628247771,-681.54,0.00046575,120]
[354699890,1740628247786,-500.0,0.00046575,120]
[354699891,1740628247795,-2023.72,0.00046575,120]
[354699892,1740628247805,-501.59322214,0.00046575,120]
[354699893,1740628247814,-922.98,0.00046575,120]
[354699894,1740628247824,-500.0,0.00046575,120]
[354699895,1740628247834,-501.79180272,0.00046575,120]
[354699896,1740628247843,-500.0,0.00046575,120]
[354699897,1740628247854,-500.0,0.00046575,120]
[354699898,1740628247864,-941.41,0.00046575,120]
[354699899,1740628247874,-500.0,0.00046575,120]
[354699900,1740628247884,-577.23,0.00046575,120]
[354699901,1740628247894,-500.0,0.00046575,120]
[354699902,1740628247904,-500.0,0.00046575,120]
[354699903,1740628247913,-503.15,0.00046575,120]
[354699904,1740628247923,-500.0,0.00046575,120]
[354699905,1740628247933,-1260.11,0.00046575,120]
[354699906,1740628247943,-28610.81,0.00046575,6]
[354699907,1740628247953,-500.0,0.00046575,120]
[354699908,1740628247962,-500.0,0.00046575,120]
[354699909,1740628247972,-501.98971261,0.00046575,120]
[354699910,1740628247981,-500.0,0.00046575,120]
[354699911,1740628247991,-500.0,0.00046575,120]
[354699912,1740628248002,-500.0,0.00046575,120]
[354699913,1740628248012,-151.0,0.00046575,120]
[354699914,1740628248021,-151.0,0.00046575,120]
[354699915,1740628248031,-151.0,0.00046575,120]
[354699916,1740628248041,-500.0,0.00046575,120]
[354699917,1740628248052,-2143.37,0.00046575,120]
[354699918,1740628248062,-40083.14,0.00046575,120]
[354699919,1740628248072,-172.325518,0.00046575,120]
[354699920,1740628248084,-172.325518,0.00046575,120]
[354699921,1740628248093,-172.325518,0.00046575,120]
[354699922,1740628248103,-172.325518,0.00046575,120]
[354699923,1740628248112,-172.325518,0.00046575,120]
[354699924,1740628248122,-172.325518,0.00046575,120]
[354699925,1740628248132,-18029.97,0.00046575,120]
[354699926,1740628248142,-501.14196905,0.00046575,120]
[354699927,1740628248152,-500.0,0.00046575,120]
[354699928,1740628248161,-500.0,0.00046575,120]
[354699929,1740628248171,-172.325518,0.00046575,120]
[354699930,1740628248180,-172.325518,0.00046575,120]
[354699931,1740628248190,-500.0,0.00046575,120]
[354699932,1740628248199,-172.325518,0.00046575,120]
[354699933,1740628248208,-7683.19,0.00046575,120]
[354699934,1740628248218,-172.325518,0.00046575,120]
[354699935,1740628248238,-172.325518,0.00046575,120]
[354699936,1740628248249,-500.0,0.00046575,120]
[354699937,1740628248259,-172.325518,0.00046575,120]
[354699938,1740628248269,-500.0,0.00046575,120]
[354699939,1740628248280,-500.0,0.00046575,120]
[354699940,1740628248290,-500.0,0.00046575,120]
[354699941,1740628248300,-2007.34,0.00046575,120]
[354699942,1740628248310,-502.79568608,0.00046575,30]
[354699943,1740628248320,-162.01,0.000466,30]
[354699944,1740628248332,-2616.54,0.000466,30]
[354699945,1740628248342,-122095.05,0.000466,30]
[354699946,1740628248353,-6880.52,0.000466,30]
[354699947,1740628248363,-1145.03,0.000466,30]
[354699948,1740628248373,-151.0,0.000466,120]
[354699949,1740628248384,-9455.75,0.000466,30]
[354699950,1740628248394,-151.0,0.000466,26]
[354699951,1740628248404,-151.0,0.000466,30]
[354699952,1740628248415,-151.0,0.000466,22]
[354699953,1740628248426,-151.0,0.000466,29]
[354699954,1740628248435,-151.0,0.000466,120]
[354699955,1740628248446,-151.0,0.000466,120]
[354699956,1740628248456,-151.0,0.000466,120]
[354699957,1740628248466,-151.0,0.000466,120]
[354699958,1740628248476,-391.184887,0.000466,120]
[354699959,1740628248486,-391.184887,0.000466,120]
[354699960,1740628248496,-151.0,0.000466,30]
[354699961,1740628248506,-169.857744,0.000466,30]
[354699962,1740628248516,-1000.0,0.000466,120]
[354699963,1740628248526,-151.0,0.000466,120]
[354699964,1740628248536,-154.217598,0.000466,120]
[354699965,1740628248547,-154.217598,0.000466,120]
[354699966,1740628248557,-151.0,0.000466,120]
[354699967,1740628248567,-203.63948,0.000466,120]
[354699968,1740628248577,-203.63948,0.000466,120]
[354699969,1740628248587,-151.0,0.000466,120]
[354699970,1740628248597,-172.325518,0.000466,120]
[354699971,1740628248608,-172.325518,0.000466,120]
[354699972,1740628248618,-684.17604226,0.00046628,120]
[354699973,1740628248628,-302.0,0.00046721,2]
[354699974,1740628248638,-500.0,0.00046721,2]
[354699975,1740628248648,-7721.18422649,0.00046749,2]
[354699976,1740628248658,-3000.0,0.00046749,2]
[354699977,1740628248668,-151.0,0.000468,26]
[354699978,1740628248678,-497.02191856,0.00046849,120]
[354699979,1740628248688,-502.69278621,0.00046849,120]
[354699980,1740628248698,-170.50980352,0.00046849,120]
[354699981,1740628248708,-497.12912237,0.00046849,120]
[354699982,1740628248718,-500.0,0.00046849,120]
[354699983,1740628248727,-500.0,0.00046849,120]
[354699984,1740628248737,-593.15,0.00046849,120]
[354699985,1740628248748,-500.0,0.00046849,120]
[354699986,1740628248759,-500.0,0.00046849,120]
[354699987,1740628248769,-500.0,0.00046849,120]
[354699988,1740628248783,-570.65,0.00046849,120]
[354699989,1740628248793,-500.0,0.00046849,120]
[354699990,1740628248802,-780.41,0.00046849,120]
[354699991,1740628248813,-502.87875738,0.00046849,120]
[354699992,1740628248824,-500.0,0.00046849,120]
[354699993,1740628248837,-500.0,0.00046849,120]
[354699994,1740628248847,-523.56564249,0.00046849,10]
[354699995,1740628248858,-566.38,0.00046849,120]
[354699996,1740628248867,-500.0,0.00046849,120]
[354699997,1740628248877,-503.83223642,0.00046849,120]
[354699998,1740628248886,-500.0,0.00046849,120]
[354699999,1740628248896,-500.0,0.00046849,120]
[354700000,1740628248906,-500.0,0.00046849,120]
[354700001,1740628248916,-797.05,0.00046849,120]
[354700002,1740628248926,-500.0,0.00046849,120]
[354700003,1740628248936,-500.0,0.00046849,120]
[354700004,1740628248946,-500.0,0.00046849,120]
[354700005,1740628248956,-416.63486096,0.00046849,120]
[354700006,1740628248966,-506.41634077,0.00046849,120]
[354700007,1740628248976,-500.0,0.00046849,120]
[354700008,1740628248986,-500.0,0.00046849,120]
[354700009,1740628248995,-500.0,0.00046849,120]
[354700010,1740628249005,-500.0,0.00046849,120]
[354700011,1740628249015,-500.0,0.00046849,120]
[354700012,1740628249025,-500.0,0.00046849,120]
[354700013,1740628249035,-768.39,0.00046849,120]
[354700014,1740628249045,-500.0,0.00046849,120]
[354700015,1740628249056,-504.65954649,0.00046849,120]
[354700016,1740628249066,-500.0,0.00046849,120]
[354700017,1740628249076,-827.32,0.00046849,120]
[354700018,1740628249089,-500.0,0.00046849,120]
[354700019,1740628249098,-500.0,0.00046849,120]
[354700020,1740628249108,-1418.83,0.00046849,120]
[354700021,1740628249118,-500.0,0.00046849,120]
[354700022,1740628249128,-500.0,0.00046849,120]
[354700023,1740628249138,-500.0,0.00046849,120]
[354700024,1740628249148,-503.89633789,0.00046849,120]
[354700025,1740628249158,-500.0,0.00046849,120]
[354700026,1740628249168,-500.0,0.00046849,120]
[354700027,1740628249178,-500.0,0.00046849,120]
[354700028,1740628249188,-500.0,0.00046849,120]
[354700029,1740628249198,-852.35,0.00046849,120]
[354700030,1740628249208,-500.0,0.00046849,120]
[354700031,1740628249218,-500.0,0.00046849,120]
[354700032,1740628249228,-325.23511933,0.00046849,120]
[354700033,1740628249238,-500.0,0.00046849,120]
[354700034,1740628249248,-500.0,0.00046849,120]
[354700035,1740628249258,-151.0,0.00046849,120]
[354700036,1740628249269,-500.0,0.00046849,120]
[354700037,1740628249279,-553.69743673,0.00046849,120]
[354700038,1740628249288,-503.55546641,0.00046849,120]
[354700039,1740628249299,-500.0,0.00046849,120]
[354700040,1740628249308,-500.0,0.00046849,120]
[354700041,1740628249318,-500.0,0.00046849,120]
[354700042,1740628249328,-501.55637243,0.00046849,120]
[354700043,1740628249340,-500.0,0.00046849,120]
[354700044,1740628249350,-238.20608317,0.00046849,120]
[354700045,1740628249360,-560.69,0.00046849,120]
[354700046,1740628249370,-500.0,0.00046849,120]
[354700047,1740628249380,-500.0,0.00046849,120]
[354700048,1740628249389,-224.02584829,0.00046849,120]
[354700049,1740628249399,-949.2,0.00046849,120]
[354700050,1740628249409,-503.59832505,0.00046849,120]
[354700051,1740628249420,-500.0,0.00046849,120]
[354700052,1740628249430,-500.0,0.00046849,120]
[354700053,1740628249439,-500.0,0.00046849,120]
[354700054,1740628249449,-239.12116535,0.00046849,120]
[354700055,1740628249459,-524.86,0.00046849,120]
[354700056,1740628249469,-500.0,0.00046849,120]
[354700057,1740628249478,-500.0,0.00046849,120]
[354700058,1740628249488,-500.0,0.00046849,120]
[354700059,1740628249498,-500.0,0.00046849,120]
[354700060,1740628249507,-500.0,0.00046849,120]
[354700061,1740628249517,-500.0,0.00046849,120]
[354700062,1740628249527,-500.0,0.00046849,120]
[354700063,1740628249539,-500.0,0.00046849,120]
[354700064,1740628249549,-500.0,0.00046849,120]
[354700065,1740628249561,-500.0,0.00046849,120]
[354700066,1740628249571,-500.0,0.00046849,120]
[354700067,1740628249583,-500.0,0.00046849,120]
[354700068,1740628249593,-934.32,0.00046849,120]
[354700069,1740628249602,-500.0,0.00046849,120]
[354700070,1740628249612,-958.18,0.00046849,120]
[354700071,1740628249622,-572.69,0.00046849,120]
[354700072,1740628249631,-632.92,0.00046849,120]
[354700073,1740628249641,-1164.98,0.00046849,120]
[354700074,1740628249655,-500.0,0.00046849,120]
[354700075,1740628249664,-504.62236067,0.00046849,7]
[354700076,1740628249674,-500.0,0.00046849,120]
[354700077,1740628249683,-500.0,0.00046849,120]
[354700078,1740628249693,-500.0,0.00046849,120]
[354700079,1740628249702,-500.0,0.00046849,120]
[354700080,1740628249712,-501.35752607,0.00046849,120]
[354700081,1740628249722,-710.62,0.00046849,120]
[354700082,1740628249733,-500.0,0.00046849,120]
[354700083,1740628249743,-1692.42,0.00046849,120]
[354700084,1740628249753,-500.0,0.00046849,120]
[354700085,1740628249762,-502.56023578,0.00046849,120]
[354700086,1740628249773,-854.19,0.00046849,120]
[354700087,1740628249783,-500.0,0.00046849,120]
[354700088,1740628249794,-500.0,0.00046849,120]
[354700089,1740628249804,-500.0,0.00046849,120]
[354700090,1740628249816,-1073.14,0.00046849,120]
[354700091,1740628249826,-813.29,0.00046849,120]
[354700092,1740628249836,-500.0,0.00046849,120]
[354700093,1740628249846,-391.51703964,0.00046849,120]
[354700094,1740628249856,-570.85922021,0.00046849,120]
[354700095,1740628249866,-500.0,0.00046849,120]
[354700096,1740628249876,-501.87478993,0.00046849,120]
[354700097,1740628249886,-500.0,0.00046849,120]
[354700098,1740628249897,-500.0,0.00046849,120]
[354700099,1740628249906,-785.56,0.00046849,120]
[354700100,1740628249916,-927.55,0.00046849,120]
[354700101,1740628249926,-1218.01,0.00046849,120]
[354700102,1740628249935,-500.0,0.00046849,120]
[354700103,1740628249945,-822.03,0.00046849,120]
[354700104,1740628249954,-751.57,0.00046849,120]
[354700105,1740628249964,-500.0,0.00046849,120]
[354700106,1740628249973,-503.34058286,0.00046849,120]
[354700107,1740628249983,-500.0,0.00046849,120]
[354700108,1740628249993,-897.58,0.00046849,120]
[354700109,1740628250002,-151.0,0.00046849,120]
[354700110,1740628250012,-151.0,0.00046849,120]
[354700111,1740628250022,-1602.4,0.00046849,120]
[354700112,1740628250032,-502.50316653,0.00046849,120]
[354700113,1740628250041,-151.0,0.00046849,120]
[354700114,1740628250051,-151.0,0.00046849,120]
[354700115,1740628250061,-502.6295025,0.00046849,120]
[354700116,1740628250071,-755.76,0.00046849,120]
[354700117,1740628250082,-2936.95,0.00046849,120]
[354700118,1740628250092,-500.0,0.00046849,120]
[354700119,1740628250101,-500.0,0.00046849,120]
[354700120,1740628250111,-500.0,0.00046849,120]
[354700121,1740628250121,-500.0,0.00046849,120]
[354700122,1740628250131,-500.0,0.00046849,120]
[354700123,1740628250141,-500.0,0.00046849,120]
[354700124,1740628250150,-500.0,0.00046849,120]
[354700125,1740628250160,-500.0,0.00046849,120]
[354700126,1740628250170,-500.0,0.00046849,120]
[354700127,1740628250181,-500.0,0.00046849,120]
[354700128,1740628250315,-500.0,0.00046849,120]
[354700129,1740628250340,-500.0,0.00046849,120]
[354700130,1740628250350,-241.75461406,0.00046849,120]
[354700131,1740628250360,-500.0,0.00046849,120]
[354700132,1740628250369,-500.0,0.00046849,120]
[354700133,1740628250378,-500.0,0.00046849,120]
[354700134,1740628250388,-500.0,0.00046849,120]
[354700135,1740628250399,-690.81,0.00046849,120]
[354700136,1740628250408,-500.0,0.00046849,120]
[354700137,1740628250417,-2038.67,0.00046849,120]
[354700138,1740628250427,-500.0,0.00046849,120]
[354700139,1740628250436,-500.0,0.00046849,120]
[354700140,1740628250446,-500.0,0.00046849,120]
[354700141,1740628250456,-500.0,0.00046849,120]
[354700142,1740628250466,-3236.64,0.00046849,120]
[354700143,1740628250475,-500.0,0.00046849,120]
[354700144,1740628250484,-500.0,0.00046849,120]
[354700145,1740628250494,-596.99543523,0.00046849,120]
[354700146,1740628250505,-500.0,0.00046849,120]
[354700147,1740628250515,-300.0,0.00046849,120]
[354700148,1740628250526,-969.61,0.00046849,120]
[354700149,1740628250535,-543.74,0.00046849,120]
[354700150,1740628250545,-2040.43,0.00046849,120]
[354700151,1740628250554,-500.0,0.00046849,120]
[354700152,1740628250563,-597.63873354,0.00046849,120]
[354700153,1740628250573,-500.0,0.00046849,120]
[354700154,1740628250582,-658.16,0.00046849,120]
[354700155,1740628250591,-3045.52,0.00046849,120]
[354700156,1740628250601,-584.76,0.00046849,120]
[354700157,1740628250610,-500.0,0.00046849,120]
[354700158,1740628250619,-500.0,0.00046849,120]
[354700159,1740628250628,-500.0,0.00046849,120]
[354700160,1740628250638,-500.0,0.00046849,120]
[354700161,1740628250648,-500.0,0.00046849,120]
[354700162,1740628250659,-500.0,0.00046849,120]
[354700163,1740628250669,-4367.33,0.00046849,120]
[354700164,1740628250678,-500.0,0.00046849,120]
[354700165,1740628250687,-500.0,0.00046849,120]
[354700166,1740628250697,-1365.33,0.00046849,120]
[354700167,1740628250709,-1534.47,0.00046849,120]
[354700168,1740628250718,-151.0,0.00046849,120]
[354700169,1740628250727,-151.0,0.00046849,120]
[354700170,1740628250736,-151.0,0.00046849,120]
[354700171,1740628250746,-151.0,0.00046849,120]
[354700172,1740628250757,-1512.89,0.00046849,120]
[354700173,1740628250766,-500.0,0.00046849,120]
[354700174,1740628250778,-689.11,0.00046849,120]
[354700175,1740628250787,-877.5,0.00046849,120]
[354700176,1740628250796,-2559.48,0.00046849,120]
[354700177,1740628250807,-500.0,0.00046849,120]
[354700178,1740628250817,-500.0,0.00046849,120]
[354700179,1740628250826,-685.48,0.00046849,120]
[354700180,1740628250837,-715.45,0.00046849,120]
[354700181,1740628250847,-500.0,0.00046849,120]
[354700182,1740628250856,-1386.85,0.00046849,120]
[354700183,1740628250866,-500.0,0.00046849,120]
[354700184,1740628250875,-500.0,0.00046849,120]
[354700185,1740628250884,-624.46,0.00046849,120]
[354700186,1740628250894,-627.78,0.00046849,120]
[354700187,1740628250903,-500.0,0.00046849,120]
[354700188,1740628250912,-725.02,0.00046849,120]
[354700189,1740628250921,-1947.97,0.00046849,120]
[354700190,1740628250930,-500.0,0.00046849,120]
[354700191,1740628250939,-1773.59,0.00046849,120]
[354700192,1740628250948,-500.0,0.00046849,120]
[354700193,1740628250958,-500.0,0.00046849,120]
[354700194,1740628250967,-1783.55,0.00046849,120]
[354700195,1740628250976,-151.0,0.00046849,120]
[354700196,1740628250985,-151.0,0.00046849,120]
[354700197,1740628250994,-151.0,0.00046849,120]
[354700198,1740628251003,-748.91,0.00046849,120]
[354700199,1740628251013,-500.0,0.00046849,120]
[354700200,1740628251022,-3613.6,0.00046849,120]
[354700201,1740628251031,-500.0,0.00046849,120]
[354700202,1740628251041,-500.0,0.00046849,120]
[354700203,1740628251050,-881.2,0.00046849,120]
[354700204,1740628251060,-500.0,0.00046849,120]
[354700205,1740628251069,-1733.96,0.00046849,120]
[354700206,1740628251078,-500.0,0.00046849,120]
[354700207,1740628251090,-500.0,0.00046849,30]
[354700208,1740628251099,-500.0,0.00046849,120]
[354700209,1740628251109,-686.53,0.00046849,120]
[354700210,1740628251118,-500.0,0.00046849,120]
[354700211,1740628251128,-500.0,0.00046849,120]
[354700212,1740628251137,-500.85517924,0.00046849,120]
[354700213,1740628251146,-500.0,0.00046849,30]
[354700214,1740628251155,-524.21,0.00046849,120]
[354700215,1740628251164,-1543.48,0.00046849,120]
[354700216,1740628251174,-500.0,0.00046849,120]
[354700217,1740628251183,-500.0,0.00046849,120]
[354700218,1740628251193,-524.27,0.00046849,120]
[354700219,1740628251202,-500.0,0.00046849,120]
[354700220,1740628251211,-500.0,0.00046849,120]
[354700221,1740628251220,-500.0,0.00046849,120]
[354700222,1740628251229,-1270.7,0.00046849,120]
[354700223,1740628251238,-264.305372,0.00046849,120]
[354700224,1740628251247,-1474.69,0.00046849,120]
[354700225,1740628251256,-500.0,0.00046849,120]
[354700226,1740628251265,-527.46478342,0.00046849,120]
[354700227,1740628251275,-772.19,0.00046849,120]
[354700228,1740628251284,-823.67,0.00046849,120]
[354700229,1740628251293,-500.0,0.00046849,120]
[354700230,1740628251302,-500.0,0.00046849,120]
[354700231,1740628251311,-1328.16,0.00046849,120]
[354700232,1740628251320,-507.52571748,0.00046849,120]
[354700233,1740628251329,-500.0,0.00046849,120]
[354700234,1740628251340,-500.0,0.00046849,120]
[354700235,1740628251349,-391.184887,0.00046849,120]
[354700236,1740628251358,-2621.87,0.00046849,120]
[354700237,1740628251367,-391.184887,0.00046849,120]
[354700238,1740628251376,-391.184887,0.00046849,120]
[354700239,1740628251385,-500.0,0.00046849,120]
[354700240,1740628251394,-2850.7,0.00046849,120]
[354700241,1740628251403,-500.0,0.00046849,120]
[354700242,1740628251412,-391.184887,0.00046849,120]
[354700243,1740628251421,-500.0,0.00046849,120]
[354700244,1740628251431,-391.184887,0.00046849,120]
[354700245,1740628251440,-391.184891,0.00046849,120]
[354700246,1740628251450,-2280.7,0.00046849,120]
[354700247,1740628251459,-1028.4,0.00046849,120]
[354700248,1740628251469,-947.89,0.00046849,120]
[354700249,1740628251478,-151.0,0.00046849,30]
[354700250,1740628251487,-151.0,0.00046849,30]
[354700251,1740628251496,-151.0,0.00046849,30]
[354700252,1740628251506,-645.66,0.00046849,120]
[354700253,1740628251515,-500.0,0.00046849,120]
[354700254,1740628251525,-806.86,0.00046849,120]
[354700255,1740628251534,-500.0,0.00046849,120]
[354700256,1740628251544,-868.62,0.00046849,120]
[354700257,1740628251554,-501.75937348,0.00046849,120]
[354700258,1740628251563,-500.0,0.00046849,120]
[354700259,1740628251573,-502.12871722,0.00046849,120]
[354700260,1740628251583,-500.0,0.00046849,15]
[354700261,1740628251593,-500.0,0.00046849,120]
[354700262,1740628251603,-500.0,0.00046849,120]
[354700263,1740628251612,-500.0,0.00046849,120]
[354700264,1740628251622,-500.0,0.00046849,120]
[354700265,1740628251632,-741.48,0.00046849,120]
[354700266,1740628251641,-500.0,0.00046849,120]
[354700267,1740628251651,-500.0,0.00046849,120]
[354700268,1740628251660,-525.65,0.00046849,120]
[354700269,1740628251669,-691.43,0.00046849,120]
[354700270,1740628251679,-598.57,0.00046849,120]
[354700271,1740628251688,-1395.46,0.00046849,120]
[354700272,1740628251698,-500.0,0.00046849,120]
[354700273,1740628251707,-510.44290016,0.00046849,120]
[354700274,1740628251717,-500.0,0.00046849,120]
[354700275,1740628251726,-502.20605589,0.00046849,120]
[354700276,1740628251735,-500.0,0.00046849,120]
[354700277,1740628251745,-500.0,0.00046849,120]
[354700278,1740628251754,-500.0,0.00046849,120]
[354700279,1740628251763,-639.23152178,0.00046849,120]
[354700280,1740628251774,-500.0,0.00046849,120]
[354700281,1740628251784,-500.0,0.00046849,120]
[354700282,1740628251793,-502.71019352,0.00046849,120]
[354700283,1740628251803,-500.0,0.00046849,120]
[354700284,1740628251813,-931.39,0.00046849,120]
[354700285,1740628251823,-500.0,0.00046849,120]
[354700286,1740628251833,-628.55,0.00046849,120]
[354700287,1740628251842,-500.0,0.00046849,120]
[354700288,1740628251853,-852.74,0.00046849,120]
[354700289,1740628251862,-3144.25,0.00046849,120]
[354700290,1740628251871,-565.68069258,0.00046849,120]
[354700291,1740628251880,-500.0,0.00046849,120]
[354700292,1740628251889,-500.0,0.00046849,120]
[354700293,1740628251899,-402.67336442,0.00046849,120]
[354700294,1740628251909,-500.0,0.00046849,120]
[354700295,1740628251918,-500.0,0.00046849,120]
[354700296,1740628251927,-1407.54,0.00046849,120]
[354700297,1740628251936,-500.0,0.00046849,120]
[354700298,1740628251946,-502.01420015,0.00046849,120]
[354700299,1740628251955,-750.76,0.00046849,120]
[354700300,1740628251964,-500.0,0.00046849,120]
[354700301,1740628251974,-504.35978953,0.00046849,120]
[354700302,1740628251983,-502.1863075,0.00046849,120]
[354700303,1740628251994,-3592.26,0.00046849,120]
[354700304,1740628252003,-500.0,0.00046849,120]
[354700305,1740628252013,-500.0,0.00046849,120]
[354700306,1740628252022,-500.0,0.00046849,120]
[354700307,1740628252032,-1094.94,0.00046849,120]
[354700308,1740628252041,-1662.16,0.00046849,120]
[354700309,1740628252051,-500.0,0.00046849,120]